bitfinex-derivatives/quotes_BTCF0:USTF0_20250602
["timestamp","ask_amount","ask_price","bid_price","bid_amount"]
[1748860074830,0.5540812,104510.0,104500.0,0.67220827]
[1748860075841,0.5570812,104510.0,104500.0,0.67220827]
[1748860076135,0.76500773,104510.0,104500.0,0.67220827]
[1748860076332,0.84127142,104510.0,104500.0,0.67220827]
[1748860076527,0.9879504,104510.0,104500.0,0.67220827]
[1748860079334,1.3487504,104510.0,104500.0,0.67220827]
[1748860083739,1.3467504,104510.0,104500.0,0.67220827]
[1748860083949,1.3477504,104510.0,104500.0,0.67220827]
[1748860084449,1.3457504,104510.0,104500.0,0.67220827]
[1748860087142,1.13782387,104510.0,104500.0,0.67220827]
[1748860087346,1.13771633,104510.0,104500.0,0.81877971]
[1748860087743,0.99114489,104510.0,104500.0,1.15665065]
[1748860087948,0.99114489,104510.0,104500.0,1.01007921]
[1748860088250,0.99114489,104510.0,104500.0,1.15665065]
[1748860088646,1.1398189,104510.0,104500.0,1.15665065]
[1748860089645,0.2269377,104510.0,104500.0,1.15665065]
[1748860089845,0.41821475,104510.0,104500.0,1.50233865]
[1748860090144,0.41721475,104510.0,104500.0,1.50333865]
[1748860090551,0.41621475,104510.0,104500.0,1.50233865]
[1748860090755,0.41621475,104510.0,104500.0,1.50433865]
[1748860090756,0.26754469,104510.0,104500.0,1.50433865]
[1748860091148,0.26754469,104510.0,104500.0,1.10771819]
[1748860091448,0.26754469,104510.0,104500.0,1.10971819]
[1748860092045,0.26754459,104510.0,104500.0,1.35971819]
[1748860092352,0.26754459,104510.0,104500.0,1.10971819]
[1748860099563,0.26754459,104510.0,104500.0,1.01403019]
[1748860100061,0.07626369,104510.0,104500.0,1.01403019]
[1748860100260,0.69567741,104520.0,104510.0,0.1912812]
[1748860100261,0.50439931,104520.0,104510.0,0.1912812]
[1748860100461,0.69567691,104520.0,104510.0,0.43360362]
[1748860100864,0.69567691,104520.0,104510.0,0.89336362]
[1748860102163,0.69567691,104520.0,104510.0,0.89436362]
[1748860102565,0.84434697,104520.0,104510.0,0.89436362]
[1748860102762,0.99086939,104520.0,104510.0,0.21008]
[1748860102963,1.08486939,104520.0,104510.0,0.0968]
[1748860103159,1.29064828,104520.0,104510.0,0.0012]
[1748860103365,1.58641168,104520.0,104510.0,0.0012]
[1748860103566,1.58641168,104520.0,104510.0,0.00033009]
[1748860103772,1.37848515,104520.0,104510.0,0.00053009]
[1748860103955,1.23196273,104520.0,104510.0,0.00053009]
[1748860104157,0.93619933,104520.0,104510.0,0.00053009]
[1748860104360,0.93719933,104520.0,104510.0,0.00053009]
[1748860105066,0.94019933,104520.0,104510.0,0.00053009]
[1748860105763,1.2409892,104520.0,104510.0,0.0002]
[1748860107160,1.38751162,104520.0,104510.0,0.0002]
[1748860110865,1.09446678,104520.0,104510.0,0.0002]
[1748860111062,1.2409892,104520.0,104510.0,0.0002]
[1748860112873,0.8801892,104520.0,104510.0,0.0002]
[1748860113070,1.6017892,104520.0,104510.0,0.0002]
[1748860113574,0.1912812,104510.0,104500.0,0.62508885]
[1748860113770,0.84069477,104510.0,104500.0,0.62508885]
[1748860114564,0.84069477,104510.0,104500.0,0.0652]
[1748860114770,0.1912995,104500.0,104490.0,0.0947]
[1748860115073,1.00374415,104500.0,104490.0,0.6677]
[1748860115967,1.00474415,104500.0,104490.0,0.6677]
[1748860116571,1.00574415,104500.0,104490.0,0.6677]
[1748860118176,1.00574415,104500.0,104490.0,0.0949]
[1748860118376,0.85922173,104500.0,104490.0,0.66766]
[1748860118568,0.6513995,104500.0,104490.0,0.66766]
[1748860120778,0.85922173,104500.0,104490.0,0.66766]
[1748860121365,0.85922173,104500.0,104490.0,0.66758]
[1748860123572,0.6513995,104500.0,104490.0,0.66758]
[1748860123967,0.85922173,104500.0,104490.0,0.66758]
[1748860124174,0.82622173,104500.0,104490.0,0.858898]
[1748860124372,0.79482173,104500.0,104490.0,0.858898]
[1748860124570,0.79482173,104500.0,104490.0,0.399498]
[1748860124772,0.79482173,104500.0,104490.0,0.858818]
[1748860125173,0.79482173,104500.0,104490.0,0.6675]
[1748860125680,0.79482173,104500.0,104490.0,0.20818]
[1748860125881,0.94134415,104500.0,104490.0,0.20818]
[1748860126084,1.00544415,104500.0,104490.0,0.11328]
[1748860126278,1.00544415,104500.0,104490.0,0.11348]
[1748860126479,0.79762192,104500.0,104490.0,0.11348]
[1748860128278,0.79762192,104500.0,104490.0,0.0002]
[1748860128478,0.79762192,104500.0,104490.0,0.57272]
[1748860129081,0.43682192,104500.0,104490.0,0.57272]
[1748860129281,1.15842192,104500.0,104490.0,0.57272]
[1748860129883,1.0118995,104500.0,104490.0,0.11348]
[1748860130182,1.15842192,104500.0,104490.0,0.11348]
[1748860131079,1.15842192,104500.0,104490.0,0.14358]
[1748860132285,1.15842192,104500.0,104490.0,0.17518]
[1748860133382,1.15842192,104500.0,104490.0,0.20718]
[1748860133383,1.15742192,104500.0,104490.0,0.20718]
[1748860133682,1.16442192,104500.0,104490.0,0.20718]
[1748860137194,1.31118856,104500.0,104490.0,0.20718]
[1748860137391,1.06754403,104500.0,104490.0,0.54514213]
[1748860137695,1.06754403,104500.0,104490.0,0.35382453]
[1748860137992,1.06754403,104500.0,104490.0,0.54514213]
[1748860138798,1.06454403,104500.0,104490.0,0.54514213]
[1748860139200,0.9148995,104500.0,104490.0,0.3984976]
[1748860139401,0.9148995,104500.0,104490.0,0.54509998]
[1748860141900,0.9148995,104500.0,104490.0,0.3984976]
[1748860142703,1.1230087,104500.0,104490.0,0.3984976]
[1748860143701,1.1230087,104500.0,104490.0,0.20718]
[1748860144000,0.7622087,104500.0,104490.0,0.54509998]
[1748860145400,0.7612087,104500.0,104490.0,0.54609998]
[1748860145601,0.7602087,104500.0,104490.0,0.54709998]
[1748860145995,0.7602087,104500.0,104490.0,0.20886]
[1748860145996,0.90681108,104500.0,104490.0,0.20886]
[1748860146201,0.90681108,104500.0,104490.0,0.0957]
[1748860146402,0.90681108,104500.0,104490.0,0.6667]
[1748860146602,0.90681108,104500.0,104490.0,0.6665]
[1748860146803,0.90681108,104500.0,104490.0,0.6667]
[1748860147304,0.97171108,104500.0,104490.0,0.6667]
[1748860147499,0.97171108,104500.0,104490.0,0.0949]
[1748860147699,0.97171108,104500.0,104490.0,0.6667]
[1748860147905,1.00451108,104500.0,104490.0,0.6667]
[1748860148210,1.00451108,104500.0,104490.0,0.0949]
[1748860148411,1.00551108,104500.0,104490.0,0.66566]
[1748860148895,1.00451108,104500.0,104490.0,0.66566]
[1748860149101,1.00651108,104500.0,104490.0,0.66566]
[1748860149303,1.00751108,104500.0,104490.0,0.0939]
[1748860149610,0.79940188,104500.0,104490.0,0.66562]
[1748860149908,0.79840188,104500.0,104490.0,0.66562]
[1748860150108,0.80140188,104500.0,104490.0,0.66562]
[1748860153412,1.00964128,104500.0,104490.0,0.66562]
[1748860153709,0.80140188,104500.0,104490.0,0.66562]
[1748860156008,0.80140188,104500.0,104490.0,0.0939]
[1748860156203,0.80140188,104500.0,104490.0,0.20686]
[1748860156424,0.80140188,104500.0,104490.0,0.66546]
[1748860156614,0.80140188,104500.0,104490.0,0.66526]
[1748860157321,0.80140188,104500.0,104490.0,0.66546]
[1748860157611,0.6547995,104500.0,104490.0,0.66546]
[1748860157819,0.6219995,104500.0,104490.0,0.66546]
[1748860158021,0.76860188,104500.0,104490.0,0.66546]
[1748860159015,0.76560188,104500.0,104490.0,0.66546]
[1748860159321,0.76860188,104500.0,104490.0,0.66546]
[1748860159716,0.80010188,104500.0,104490.0,0.66546]
[1748860161407,0.80010188,104500.0,104490.0,0.20686]
[1748860161614,1.00839614,104500.0,104490.0,0.66514]
[1748860161814,0.1913359,104480.0,104470.0,1.11198975]
[1748860162017,0.1913359,104480.0,104470.0,1.90558395]
[1748860162018,0.70091707,104480.0,104470.0,1.90558395]
[1748860162320,0.76043016,104480.0,104470.0,1.90558395]
[1748860162517,0.76043016,104480.0,104470.0,1.25574975]
[1748860162716,0.76043016,104480.0,104470.0,1.71438975]
[1748860162916,1.12123016,104480.0,104470.0,1.25594975]
[1748860163117,1.12123016,104480.0,104470.0,1.77738975]
[1748860163319,1.05953828,104480.0,104470.0,1.31894975]
[1748860163522,1.05953828,104480.0,104470.0,1.77738975]
[1748860163716,0.9129359,104480.0,104470.0,1.77718975]
[1748860164025,1.12119413,104480.0,104470.0,1.77838975]
[1748860164215,1.12119413,104480.0,104470.0,1.96974395]
[1748860164519,0.76039413,104480.0,104470.0,2.11634633]
[1748860164824,0.76039413,104480.0,104470.0,1.65790633]
[1748860165025,0.76039413,104480.0,104470.0,2.11630633]
[1748860167023,0.5521359,104480.0,104470.0,2.11630633]
[1748860168521,0.1913359,104480.0,104470.0,2.11630633]
[1748860168731,0.5521359,104480.0,104470.0,2.11630633]
[1748860169422,0.1913359,104480.0,104470.0,2.11630633]
[1748860169724,0.5521359,104480.0,104470.0,2.11630633]
[1748860173436,0.5521359,104480.0,104470.0,1.65790633]
[1748860173628,0.5521359,104480.0,104470.0,1.96950395]
[1748860173823,0.70084967,104480.0,104470.0,1.96950395]
[1748860176827,0.5521359,104480.0,104470.0,1.96950395]
[1748860177724,0.5521359,104480.0,104470.0,1.95515395]
[1748860178227,0.76039413,104480.0,104470.0,1.95515395]
[1748860180129,0.39959413,104480.0,104470.0,1.95515395]
[1748860180328,0.76039413,104480.0,104470.0,1.95515395]
[1748860180739,0.5521359,104480.0,104470.0,1.95515395]
[1748860180939,0.5521359,104480.0,104470.0,2.10175633]
[1748860181641,0.5521359,104480.0,104470.0,2.11610633]
[1748860182245,0.76039413,104480.0,104470.0,1.54534633]
[1748860182439,0.76039413,104480.0,104470.0,2.11590633]
[1748860183839,0.76039413,104480.0,104470.0,1.96926395]
[1748860189149,0.90704994,104480.0,104470.0,2.11591976]
[1748860189543,0.90704994,104480.0,104470.0,1.65795976]
[1748860189744,0.90704994,104480.0,104470.0,2.11575976]
[1748860189951,0.69879171,104480.0,104470.0,2.11575976]
[1748860190943,0.90725076,104480.0,104470.0,2.11575976]
[1748860191448,1.26805076,104480.0,104470.0,2.11575976]
[1748860194052,1.05959171,104480.0,104470.0,2.11575976]
[1748860194852,0.9129359,104480.0,104470.0,1.02995976]
[1748860195051,1.05959171,104480.0,104470.0,1.02995976]
[1748860195550,1.05959171,104480.0,104470.0,1.02975976]
[1748860197359,0.9129359,104480.0,104470.0,1.02975976]
[1748860197657,1.26811965,104480.0,104470.0,1.02975976]
[1748860199352,1.05959171,104480.0,104470.0,1.02975976]
[1748860199749,0.9129359,104480.0,104470.0,1.02975976]
[1748860200150,1.05959171,104480.0,104470.0,1.02975976]
[1748860200359,0.9129359,104480.0,104470.0,1.02975976]
[1748860200558,0.9129359,104480.0,104470.0,0.88310395]
[1748860200751,0.9129359,104480.0,104470.0,1.02975976]
[1748860201657,0.9129359,104480.0,104470.0,1.17641557]
[1748860202155,0.9129359,104480.0,104470.0,1.02975976]
[1748860202857,0.69577621,104490.0,104480.0,0.1913361]
[1748860203059,0.69577621,104490.0,104480.0,0.57704772]
[1748860204050,0.90633083,104490.0,104480.0,0.57704772]
[1748860204956,0.90533083,104490.0,104480.0,0.57704772]
[1748860205153,0.90533083,104490.0,104480.0,0.43039191]
[1748860205357,1.05198664,104490.0,104480.0,0.43039191]
[1748860205554,1.05098664,104490.0,104480.0,0.43139191]
[1748860206062,0.84243202,104490.0,104480.0,0.43139191]
[1748860206455,0.84243202,104490.0,104480.0,0.44574191]
[1748860209566,1.05092295,104490.0,104480.0,0.44574191]
[1748860213360,0.84243202,104490.0,104480.0,0.44574191]
[1748860213561,0.85677333,104490.0,104480.0,0.59239772]
[1748860214071,0.64794271,104490.0,104480.0,0.59239772]
[1748860217570,0.64794271,104490.0,104480.0,0.44574191]
[1748860218673,0.64794271,104490.0,104480.0,0.59239772]
[1748860221573,0.56972604,104490.0,104480.0,0.59239772]
[1748860221772,0.20892604,104490.0,104480.0,0.59239772]
[1748860222077,0.19146061,104490.0,104480.0,0.59239772]
[1748860223279,0.34052049,104490.0,104480.0,0.59239772]
[1748860223777,0.19146061,104490.0,104480.0,0.59239772]
[1748860226883,0.3404513,104490.0,104480.0,0.60987561]
[1748860227878,0.1491337,104490.0,104480.0,0.60987561]
[1748860228085,0.3404513,104490.0,104480.0,0.60987561]
[1748860231387,0.3404513,104490.0,104480.0,1.69579561]
[1748860231788,0.1491337,104490.0,104480.0,1.69579561]
[1748860232290,0.3404513,104490.0,104480.0,1.69579561]
[1748860232486,0.1491337,104490.0,104480.0,2.05659561]
[1748860234682,0.1491337,104490.0,104480.0,1.69579561]
[1748860235193,0.3404513,104490.0,104480.0,1.69579561]
[1748860236485,0.1491337,104490.0,104480.0,1.69579561]
[1748860236984,0.1491337,104490.0,104480.0,2.05659561]
[1748860237190,0.1491337,104490.0,104480.0,1.69579561]
[1748860238480,0.1491337,104490.0,104480.0,1.99489561]
[1748860240183,0.1491337,104490.0,104480.0,2.35569561]
[1748860240584,0.00014301,104490.0,104480.0,2.35569561]
[1748860242100,0.73199069,104500.0,104490.0,0.1913176]
[1748860242391,0.73199069,104500.0,104490.0,1.00231341]
[1748860243198,0.585,104500.0,104490.0,1.00231341]
[1748860243996,0.79378303,104500.0,104490.0,1.00231341]
[1748860244691,0.79278303,104500.0,104490.0,1.00231341]
[1748860244894,0.22974989,104500.0,104490.0,1.80886922]
[1748860245284,0.14890686,104500.0,104490.0,1.80886922]
[1748860245490,0.22714102,104510.0,104500.0,0.1912993]
[1748860245691,0.22676353,104510.0,104500.0,0.58011092]
[1748860246292,0.22676353,104510.0,104500.0,0.59446092]
[1748860246896,0.22676353,104510.0,104500.0,0.59646092]
[1748860248389,0.22676353,104510.0,104500.0,0.59846092]
[1748860250687,0.07785667,104510.0,104500.0,0.59846092]
[1748860251196,0.07785667,104510.0,104500.0,0.89756092]
[1748860253090,0.43506974,104510.0,104500.0,0.89756092]
[1748860253596,0.22669559,104510.0,104500.0,0.89756092]
[1748860258008,0.14898193,104510.0,104500.0,0.89756092]
[1748860258193,0.00014301,104510.0,104500.0,0.89756092]
[1748860258593,0.14898193,104510.0,104500.0,0.89756092]
[1748860258792,0.00014301,104510.0,104500.0,0.89756092]
[1748860258993,0.14898193,104510.0,104500.0,0.89756092]
[1748860260405,0.12221433,104510.0,104500.0,1.10591673]
[1748860260704,0.1190448,104510.0,104500.0,1.10591673]
[1748860261090,0.0891746,104510.0,104500.0,1.10591673]
[1748860261292,0.20837415,104530.0,104520.0,0.1912629]
[1748860261596,0.33457771,104540.0,104530.0,0.1912446]
[1748860261796,0.33457771,104540.0,104530.0,0.36800041]
[1748860262102,0.69537771,104540.0,104530.0,0.99536041]
[1748860263101,0.69637771,104540.0,104530.0,0.99536041]
[1748860263309,0.69637771,104540.0,104530.0,0.99520824]
[1748860263606,0.69637771,104540.0,104530.0,0.90466824]
[1748860263810,0.69637771,104540.0,104530.0,0.7581646]
[1748860264302,0.69837771,104540.0,104530.0,0.78237761]
[1748860265694,0.69837771,104540.0,104530.0,0.81257761]
[1748860265895,0.69837771,104540.0,104530.0,0.87637761]
[1748860266390,0.69837771,104540.0,104530.0,0.30945761]
[1748860266595,0.69837771,104540.0,104530.0,0.87621761]
[1748860266900,0.69837771,104540.0,104530.0,1.02272125]
[1748860267205,0.69637771,104540.0,104530.0,1.02272125]
[1748860268398,0.69537771,104540.0,104530.0,0.27795761]
[1748860268602,0.84188135,104540.0,104530.0,0.02541301]
[1748860268808,0.84188135,104540.0,104530.0,0.58222]
[1748860269102,0.84188135,104540.0,104530.0,0.58202]
[1748860269305,0.84188135,104540.0,104530.0,0.58222]
[1748860269497,1.04990235,104540.0,104530.0,0.58222]
[1748860269897,1.04990235,104540.0,104530.0,0.58218]
[1748860270097,1.1984861,104540.0,104530.0,0.01554]
[1748860270306,1.05190235,104540.0,104530.0,0.58218]
[1748860270500,0.84388135,104540.0,104530.0,0.58218]
[1748860270899,0.84388135,104540.0,104530.0,0.12674]
[1748860271100,0.84388135,104540.0,104530.0,0.58218]
[1748860271607,0.84388135,104540.0,104530.0,0.01554]
[1748860271806,1.05590235,104540.0,104530.0,0.58114]
[1748860272205,1.05490235,104540.0,104530.0,0.58114]
[1748860272507,1.05890235,104540.0,104530.0,0.58114]
[1748860273396,1.05890235,104540.0,104530.0,0.12574]
[1748860273595,1.05890235,104540.0,104530.0,0.5811]
[1748860275404,1.05690235,104540.0,104530.0,0.5811]
[1748860276212,1.05690235,104540.0,104530.0,0.58106]
[1748860276510,0.84688135,104540.0,104530.0,0.58106]
[1748860276805,0.84688135,104540.0,104530.0,0.58102]
[1748860277008,0.1912447,104530.0,104520.0,1.08572]
[1748860277312,0.76214834,104530.0,104520.0,1.6522]
[1748860278197,0.6156447,104530.0,104520.0,1.6522]
[1748860278506,0.76514834,104530.0,104520.0,1.6522]
[1748860278810,0.6186447,104530.0,104520.0,1.6522]
[1748860279004,0.76514834,104530.0,104520.0,1.6522]
[1748860279209,0.76514834,104530.0,104520.0,1.66308]
[1748860279599,0.76514834,104530.0,104520.0,1.69508]
[1748860279805,0.76514834,104530.0,104520.0,1.72768]
[1748860281308,0.76514834,104530.0,104520.0,1.2724]
[1748860281611,0.76514834,104530.0,104520.0,1.7276]
[1748860281812,0.79614834,104530.0,104520.0,1.7276]
[1748860283513,1.00422389,104530.0,104520.0,1.7276]
[1748860283813,1.00422389,104530.0,104520.0,1.7604]
[1748860284404,1.00422389,104530.0,104520.0,1.951663]
[1748860284605,1.00422389,104530.0,104520.0,1.7604]
[1748860284606,0.85772025,104530.0,104520.0,1.7604]
[1748860285715,0.85772025,104530.0,104520.0,1.3052]
[1748860285912,1.00422389,104530.0,104520.0,1.76028]
[1748860287920,0.85772025,104530.0,104520.0,1.76028]
[1748860288217,1.00422389,104530.0,104520.0,1.76028]
[1748860289218,0.79614834,104530.0,104520.0,1.53590938]
[1748860290523,1.15694834,104530.0,104520.0,1.53590938]
[1748860290917,1.15694834,104530.0,104520.0,1.72717248]
[1748860291221,1.42273821,104530.0,104520.0,1.72717248]
[1748860292318,1.27623457,104530.0,104520.0,0.8658231]
[1748860292513,1.24463457,104530.0,104520.0,0.8658231]
[1748860292818,1.21263457,104530.0,104520.0,0.8658231]
[1748860293911,0.9158447,104530.0,104520.0,0.8658231]
[1748860294614,1.21263457,104530.0,104520.0,0.85026682]
[1748860295717,1.21263457,104530.0,104510.0,0.20383526]
[1748860295907,0.2392079,104470.0,104450.0,0.2392329]
[1748860296108,1.10732344,104460.0,104450.0,0.11004502]
[1748860296313,1.10732344,104460.0,104450.0,0.15547191]
[1748860296513,0.9608198,104460.0,104450.0,0.15547191]
[1748860296718,1.2556188,104460.0,104450.0,0.15527191]
[1748860296925,1.2556188,104460.0,104450.0,0.62014197]
[1748860296926,1.33312002,104460.0,104450.0,0.62014197]
[1748860297115,1.39582002,104460.0,104450.0,0.61031191]
[1748860298813,1.39682002,104460.0,104450.0,0.61031191]
[1748860299012,1.39982002,104460.0,104450.0,0.61031191]
[1748860299219,1.39982002,104460.0,104450.0,0.67361191]
[1748860299725,1.25152466,104460.0,104450.0,0.67361191]
[1748860300224,1.25152466,104460.0,104450.0,0.10872689]
[1748860300411,1.10502102,104460.0,104450.0,0.67444689]
[1748860300617,1.25152466,104460.0,104450.0,0.67444689]
[1748860301417,1.25152466,104460.0,104450.0,0.10872689]
[1748860301618,1.25152466,104460.0,104450.0,0.67440689]
[1748860301921,1.16048191,104460.0,104450.0,0.67440689]
[1748860302120,1.30698555,104460.0,104450.0,0.67440689]
[1748860303125,1.30698555,104460.0,104450.0,0.04542689]
[1748860303429,0.1913902,104450.0,104440.0,0.14288301]
[1748860303734,0.88085473,104450.0,104440.0,0.56572001]
[1748860303920,0.1914085,104440.0,104430.0,0.0638]
[1748860304118,0.1914085,104440.0,104410.0,0.00210708]
[1748860304119,0.1914452,104420.0,104410.0,0.00210708]
[1748860304321,0.9130452,104420.0,104410.0,0.44294708]
[1748860304515,1.23800973,104420.0,104410.0,0.44294708]
[1748860304823,1.23800973,104420.0,104410.0,0.89782708]
[1748860305124,1.23800973,104420.0,104410.0,0.78718708]
[1748860305617,1.12084884,104420.0,104410.0,0.78718708]
[1748860305813,1.23900973,104420.0,104410.0,0.78718708]
[1748860306431,1.12184884,104420.0,104410.0,0.78718708]
[1748860306723,1.0333764,104420.0,104410.0,1.15825462]
[1748860307024,1.0033764,104420.0,104410.0,1.26921462]
[1748860307230,0.9150456,104420.0,104410.0,1.32961462]
[1748860307425,0.7236,104420.0,104410.0,1.32961462]
[1748860307626,0.9150455,104420.0,104410.0,1.32961462]
[1748860308534,0.7236,104420.0,104410.0,1.32961462]
[1748860309225,0.7236,104420.0,104410.0,1.34362752]
[1748860309422,0.7236,104420.0,104410.0,1.43939952]
[1748860309729,0.7236,104420.0,104410.0,1.34362752]
[1748860313236,0.7236,104420.0,104410.0,3.18939952]
[1748860313439,0.36094301,104430.0,104420.0,0.1914455]
[1748860313644,0.36094301,104430.0,104420.0,1.50260204]
[1748860314333,0.36094301,104430.0,104420.0,1.51993858]
[1748860314641,0.3608,104440.0,104430.0,0.1914269]
[1748860314841,0.3608,104440.0,104430.0,1.01254344]
[1748860315228,0.3608,104440.0,104430.0,1.42829544]
[1748860315430,0.3608,104440.0,104430.0,1.46829544]
[1748860315732,0.3608,104440.0,104430.0,1.37254344]
[1748860315932,0.3638,104440.0,104430.0,1.37254344]
[1748860316741,0.3638,104440.0,104430.0,1.46829544]
[1748860316938,0.3668,104440.0,104430.0,1.46829544]
[1748860317638,0.36094301,104450.0,104440.0,0.1914086]
[1748860317838,0.36056552,104450.0,104440.0,0.91604168]
[1748860318040,0.36056552,104450.0,104440.0,1.01178568]
[1748860318340,0.36056552,104450.0,104440.0,2.51178568]
[1748860318936,0.36056552,104450.0,104440.0,2.60326914]
[1748860319335,0.36056552,104450.0,104440.0,2.76478568]
[1748860320938,0.36056552,104450.0,104440.0,2.76278568]
[1748860321144,0.36056552,104450.0,104440.0,2.76878568]
[1748860321536,0.36056552,104450.0,104440.0,2.77378568]
[1748860322146,0.36056552,104450.0,104440.0,2.52378568]
[1748860322346,0.36056552,104450.0,104440.0,2.36326914]
[1748860322546,0.36056552,104450.0,104440.0,1.8627526]
[1748860322749,0.36056552,104450.0,104440.0,3.01380514]
[1748860323046,0.39186552,104450.0,104440.0,2.08362514]
[1748860323939,0.58325532,104450.0,104440.0,1.4684686]
[1748860324141,0.61425532,104450.0,104440.0,1.9202686]
[1748860324640,0.70258652,104450.0,104440.0,1.4348686]
[1748860324938,0.73241621,104450.0,104440.0,0.3157881]
[1748860325139,0.89293275,104450.0,104440.0,0.12418]
[1748860325343,0.89293275,104450.0,104440.0,0.57598]
[1748860325644,0.77477186,104450.0,104440.0,0.57598]
[1748860326152,0.77477186,104450.0,104440.0,0.57398]
[1748860326449,0.77477186,104450.0,104440.0,0.57378]
[1748860326638,0.77477186,104450.0,104440.0,0.57398]
[1748860326840,0.77677186,104450.0,104440.0,0.57298]
[1748860327253,0.92500356,104450.0,104440.0,0.56998]
[1748860327437,0.92500356,104450.0,104440.0,0.57098]
[1748860327639,0.76448702,104450.0,104440.0,0.7623882]
[1748860328047,0.76448702,104450.0,104440.0,0.7613882]
[1748860328249,0.76548702,104450.0,104440.0,0.7613882]
[1748860328648,0.76448702,104450.0,104440.0,0.7613882]
[1748860329453,0.76348702,104450.0,104440.0,0.7613882]
[1748860330049,0.76248702,104450.0,104440.0,0.7613882]
[1748860330947,0.61425532,104450.0,104440.0,0.7613882]
[1748860333646,0.76248702,104450.0,104440.0,0.7613882]
[1748860334861,0.61425532,104450.0,104440.0,0.7613882]
[1748860335058,0.76258917,104450.0,104440.0,0.7613882]
[1748860335944,0.61425532,104450.0,104440.0,0.3067882]
[1748860336149,0.61425532,104450.0,104440.0,0.7613082]
[1748860336353,0.77477186,104450.0,104440.0,0.56994]
[1748860336650,0.77477186,104450.0,104440.0,0.00466]
[1748860336841,0.77477186,104450.0,104440.0,0.56994]
[1748860337046,0.77477186,104450.0,104440.0,0.56974]
[1748860337246,0.98296388,104450.0,104440.0,0.56994]
[1748860337660,0.98496388,104450.0,104440.0,0.56994]
[1748860339558,0.98496388,104450.0,104440.0,0.7613483]
[1748860339856,0.77677186,104450.0,104440.0,0.56994]
[1748860341150,0.76304099,104450.0,104440.0,0.56994]
[1748860343256,0.76304099,104450.0,104440.0,0.11542]
[1748860343450,0.91160838,104450.0,104440.0,0.5699]
[1748860344063,1.27278587,104450.0,104440.0,0.5699]
[1748860345457,1.27278587,104450.0,104440.0,0.11542]
[1748860345657,1.27278587,104450.0,104440.0,0.56986]
[1748860346965,1.27278587,104450.0,104440.0,0.00486]
[1748860347157,1.534614,104450.0,104420.0,0.01450301]
[1748860347358,0.84579804,104430.0,104420.0,0.01412552]
[1748860347565,0.191445,104420.0,104410.0,0.90191198]
[1748860347758,0.82379509,104420.0,104410.0,1.21404648]
[1748860347959,0.82379509,104420.0,104410.0,1.16618158]
[1748860348662,0.97058076,104420.0,104410.0,0.92686708]
[1748860348864,1.00058076,104420.0,104410.0,1.11837048]
[1748860349064,1.00058076,104420.0,104410.0,1.11857048]
[1748860350159,1.00058076,104420.0,104410.0,0.94146708]
[1748860350471,0.9412018,104420.0,104410.0,1.13893048]
[1748860350762,0.9412018,104420.0,104410.0,0.94746708]
[1748860350954,0.9412018,104420.0,104410.0,0.49298708]
[1748860351153,0.9412018,104420.0,104410.0,0.94722708]
[1748860351154,0.79273067,104420.0,104410.0,0.94722708]
[1748860351467,1.00058076,104420.0,104410.0,0.94722708]
[1748860351766,0.85379509,104420.0,104410.0,0.94742708]
[1748860352063,1.00058076,104420.0,104410.0,0.94742708]
[1748860354369,1.00058076,104420.0,104410.0,0.49298708]
[1748860354559,1.00058076,104420.0,104410.0,0.94742708]
[1748860354761,1.00052892,104420.0,104410.0,0.94742708]
[1748860355072,1.00052892,104420.0,104410.0,0.38246708]
[1748860355263,0.79273067,104420.0,104410.0,0.83710708]
[1748860355574,0.79273067,104420.0,104410.0,0.83690708]
[1748860355861,0.79273067,104420.0,104410.0,0.83710708]
[1748860356163,0.4086692,104410.0,104380.0,0.19361728]
[1748860358066,0.9751999,104390.0,104380.0,0.86587728]
[1748860358265,1.27038452,104390.0,104380.0,0.81162588]
[1748860358470,1.12359885,104390.0,104380.0,0.84342588]
[1748860358672,1.12359885,104390.0,104380.0,0.87572588]
[1748860358969,0.9751999,104390.0,104380.0,0.87572588]
[1748860359170,0.9751999,104390.0,104380.0,0.31116588]
[1748860359365,0.9751999,104390.0,104380.0,0.87596588]
[1748860359871,0.9751999,104390.0,104380.0,1.02275155]
[1748860360071,0.9751999,104390.0,104380.0,0.87596588]
[1748860360858,0.9449999,104390.0,104380.0,0.87596588]
[1748860361567,1.02346408,104390.0,104380.0,0.87596588]
[1748860362570,1.17024975,104390.0,104380.0,0.87596588]
[1748860362779,1.20084975,104390.0,104380.0,0.87596588]
[1748860363268,1.02346408,104390.0,104380.0,0.87596588]
[1748860363472,1.14187642,104390.0,104380.0,0.87596588]
[1748860364171,1.14187642,104390.0,104380.0,0.31116588]
[1748860364365,1.14187642,104390.0,104380.0,0.87592588]
[1748860364762,0.88887232,104390.0,104380.0,1.02271155]
[1748860364962,0.88887232,104390.0,104380.0,1.36851155]
[1748860366074,0.7216,104390.0,104380.0,1.36851155]
[1748860366864,0.44960814,104400.0,104390.0,0.1914999]
[1748860367064,0.44960814,104400.0,104390.0,0.40248557]
[1748860367065,0.39970814,104400.0,104390.0,0.40248557]
[1748860368176,0.39970814,104400.0,104390.0,0.40448557]
[1748860369070,0.39970814,104400.0,104390.0,0.40648557]
[1748860369480,0.47537827,104400.0,104390.0,0.40648557]
[1748860370379,0.39970814,104400.0,104390.0,0.40648557]
[1748860372681,0.3608,104400.0,104390.0,0.40648557]
[1748860373682,0.3608,104400.0,104390.0,0.41622557]
[1748860373982,0.5522816,104400.0,104390.0,0.41622557]
[1748860374275,0.67069394,104400.0,104390.0,0.41622557]
[1748860375180,0.67069394,104400.0,104390.0,0.87050557]
[1748860376078,0.67069394,104400.0,104390.0,0.87070557]
[1748860379377,0.47921234,104400.0,104390.0,0.87070557]
[1748860381478,0.3608,104400.0,104390.0,0.87070557]
[1748860382082,0.47921234,104400.0,104390.0,0.87070557]
[1748860382289,0.3608,104400.0,104390.0,0.87070557]
[1748860383884,0.47921234,104400.0,104390.0,0.87070557]
[1748860385187,0.44168267,104420.0,104410.0,0.1914633]
[1748860385389,0.12221365,104420.0,104410.0,0.93432897]
[1748860385596,0.12221365,104420.0,104410.0,1.32682897]
[1748860385894,0.0344,104430.0,104420.0,0.1914449]
[1748860386085,0.002,104430.0,104420.0,1.88139057]
[1748860386589,0.03014301,104440.0,104430.0,0.1914266]
[1748860386784,0.22403853,104450.0,104440.0,0.1914083]
[1748860386988,0.22403853,104450.0,104440.0,0.80164162]
[1748860386989,0.25403853,104450.0,104440.0,0.80164162]
[1748860387291,0.25403853,104450.0,104440.0,0.81530178]
[1748860387589,0.07958,104450.0,104440.0,1.95450178]
[1748860387784,0.19830438,104450.0,104440.0,1.95450178]
[1748860388592,0.19830438,104450.0,104440.0,2.31530178]
[1748860389186,0.16500438,104450.0,104440.0,2.31730178]
[1748860389784,0.08885623,104450.0,104440.0,2.57349161]
[1748860389987,0.08885623,104450.0,104440.0,2.57549161]
[1748860390198,0.08885623,104450.0,104440.0,2.59312634]
[1748860390695,0.08885623,104450.0,104440.0,2.43268051]